bitfinex-derivatives/quotes_SOLF0:USTF0_20250924
["timestamp","ask_amount","ask_price","bid_price","bid_amount"]
[1758739849264,9.65739716,213.87,213.85,4.2064]
[1758739849470,3.22846746,213.86,213.85,4.2064]
[1758739849665,9.65739716,213.87,213.85,4.2064]
[1758739850676,2.15739716,213.87,213.85,4.2064]
[1758739850970,7.5,213.86,213.85,4.2064]
[1758739851572,9.65739716,213.88,213.85,4.2064]
[1758739851776,3.22882688,213.87,213.85,4.2064]
[1758739851973,7.5,213.87,213.85,4.2064]
[1758739853576,9.65739716,213.88,213.85,11.7564]
[1758739853777,3.22899197,213.87,213.85,11.7564]
[1758739853973,7.21,213.87,213.85,4.2064]
[1758739854478,7.21,213.87,213.85,11.7564]
[1758739854776,2.15739716,213.88,213.86,4.206]
[1758739854976,3.22920138,213.87,213.86,4.206]
[1758739855175,3.22920138,213.87,213.84,4.2065]
[1758739855479,3.22920138,213.86,213.84,11.7565]
[1758739856374,3.22920138,213.86,213.84,4.2065]
[1758739856571,9.36739716,213.91,213.88,11.7558]
[1758739856765,3.23036557,213.9,213.88,11.7558]
[1758739856970,9.36739716,213.91,213.88,11.7558]
[1758739857170,3.22981265,213.9,213.88,11.7558]
[1758739857468,9.36739716,213.91,213.88,11.7558]
[1758739857469,3.22981265,213.89,213.88,11.7558]
[1758739857668,9.36739716,213.91,213.88,11.7558]
[1758739857876,3.22956952,213.9,213.88,11.7558]
[1758739858073,9.36739716,213.91,213.88,11.7558]
[1758739858272,3.23018869,213.9,213.88,11.7558]
[1758739858473,3.23018869,213.89,213.88,11.7558]
[1758739864882,3.23018869,213.89,213.88,7.55]
[1758739869186,2.15739716,213.94,213.88,7.55]
[1758739869381,3.23821141,213.93,213.87,4.2058]
[1758739869581,3.23821141,213.92,213.88,7.83]
[1758739869780,3.23821141,213.91,213.88,7.83]
[1758739869980,3.23821141,213.9,213.88,7.83]
[1758739870180,9.57739716,213.94,213.88,7.83]
[1758739870380,3.23862019,213.93,213.87,4.2058]
[1758739870582,7.42,213.91,213.87,7.83]
[1758739870787,3.23862019,213.9,213.87,7.83]
[1758739870975,3.23862019,213.89,213.87,7.83]
[1758739871179,7.42,213.91,213.87,7.83]
[1758739871381,10.65841488,213.9,213.87,7.83]
[1758739871583,3.23841488,213.89,213.87,7.83]
[1758739878692,3.23841488,213.88,213.84,7.83]
[1758739878996,7.42,213.86,213.83,7.83]
[1758739879292,3.23841488,213.85,213.83,7.83]
[1758739879496,3.23841488,213.85,213.82,4.2068]
[1758739879695,3.23841488,213.85,213.83,7.83]
[1758739880893,3.23841488,213.85,213.82,4.2068]
[1758739881197,3.23841488,213.85,213.83,7.83]
[1758739881894,3.23841488,213.85,213.82,4.2068]
[1758739882098,3.23841488,213.84,213.83,7.83]
[1758739889301,7.51,213.91,213.85,7.4]
[1758739889505,3.23730207,213.9,213.82,7.4]
[1758739889707,3.23730207,213.89,213.82,7.4]
[1758739889908,3.23730207,213.88,213.82,7.4]
[1758739890207,3.23730207,213.87,213.82,7.4]
[1758739890408,7.51,213.91,213.82,7.4]
[1758739890613,3.23726105,213.9,213.82,7.4]
[1758739890803,3.23726105,213.89,213.82,7.4]
[1758739891002,3.23726105,213.88,213.82,7.4]
[1758739891304,3.23726105,213.87,213.86,11.606]
[1758739891501,3.23726105,213.87,213.8,113.82]
[1758739891810,7.51,213.89,213.81,7.4]
[1758739892110,3.23790412,213.88,213.81,7.4]
[1758739892409,3.23790412,213.87,213.85,11.6062]
[1758739892609,7.51,213.88,213.85,11.6062]
[1758739892908,3.23813293,213.87,213.85,11.6062]
[1758739893110,7.51,213.88,213.85,11.6062]
[1758739893310,3.23811698,213.87,213.85,11.6062]
[1758739893510,7.51,213.88,213.85,11.6062]
[1758739893813,3.23852622,213.87,213.85,11.6062]
[1758739894012,7.51,213.88,213.85,11.6062]
[1758739894310,3.23852728,213.87,213.85,11.6062]
[1758739894510,7.51,213.88,213.85,11.6062]
[1758739894710,3.23901807,213.87,213.85,11.6062]
[1758739894909,3.23905641,213.86,213.83,4.2066]
[1758739895110,3.23905641,213.85,213.76,7.4]
[1758739895305,3.23905641,213.84,213.76,7.4]
[1758739895603,3.23905641,213.83,213.76,7.4]
[1758739895811,7.51,213.86,213.76,7.4]
[1758739896007,3.24023052,213.85,213.79,4.2073]
[1758739896211,3.24023052,213.84,213.75,7.4]
[1758739897210,3.24023052,213.84,213.77,4.2078]
[1758739897417,3.24023052,213.84,213.78,7.4]
[1758739898212,3.24023052,213.84,213.78,11.6075]
[1758739899916,3.24023052,213.84,213.79,4.2073]
[1758739900618,10.75023052,213.84,213.8,7.4]
[1758739900920,3.24023052,213.83,213.8,7.4]
[1758739901217,3.24023052,213.82,213.8,7.4]
[1758739901417,3.24023052,213.81,213.8,7.4]
[1758739902219,7.51,213.84,213.8,7.4]
[1758739902416,3.23739338,213.83,213.8,7.4]
[1758739902720,3.23739338,213.82,213.8,7.4]
[1758739902911,7.51,213.84,213.8,7.4]
[1758739903112,3.23739338,213.83,213.8,7.4]
[1758739903313,3.23739338,213.82,213.8,7.4]
[1758739903514,7.51,213.84,213.8,7.4]
[1758739903714,3.23725467,213.83,213.8,7.4]
[1758739903915,7.51,213.86,213.8,11.6071]
[1758739904115,3.23734706,213.85,213.76,7.4]
[1758739904420,3.23734706,213.84,213.76,7.4]
[1758739904615,3.23734706,213.83,213.76,7.4]
[1758739904821,7.51,213.86,213.76,7.4]
[1758739905022,3.23729384,213.85,213.76,7.4]
[1758739905215,3.23729384,213.84,213.76,7.4]
[1758739905411,7.51,213.86,213.76,7.4]
[1758739905412,3.23729384,213.83,213.76,7.4]
[1758739905616,7.51,213.86,213.76,7.4]
[1758739905812,7.51,213.84,213.75,65.4619]
[1758739906023,7.51,213.89,213.79,7.4]
[1758739906218,3.2374423,213.88,213.84,4.2064]
[1758739906527,3.2374423,213.87,213.81,7.4]
[1758739906718,3.2374423,213.86,213.81,7.4]
[1758739907022,7.51,213.88,213.81,7.4]
[1758739907218,3.23760581,213.87,213.86,7.4]
[1758739908121,7.51,213.92,213.84,7.4]
[1758739908328,3.26346187,213.91,213.84,7.4]
[1758739908624,10.77346187,213.9,213.84,7.4]
[1758739908828,3.26346187,213.89,213.83,7.4]
[1758739909127,3.26346187,213.88,213.83,7.4]
[1758739909424,7.51,213.9,213.83,7.4]
[1758739909625,3.26348039,213.89,213.88,7.4]
[1758739913021,3.36701509,213.94,213.85,65.4316]
[1758739913224,3.26547885,213.93,213.86,7.4]
[1758739913426,3.26547885,213.92,213.86,7.4]
[1758739913628,3.26547885,213.91,213.86,7.4]
[1758739913929,7.51,213.96,213.86,7.4]
[1758739914129,3.26540682,213.95,213.86,7.4]
[1758739914327,3.36701509,213.97,213.85,65.4316]
[1758739914328,10.64540682,213.94,213.91,7.7]
[1758739914531,3.26540682,213.93,213.91,7.7]
[1758739914736,3.26540682,213.92,213.91,7.7]
[1758739916428,7.38,213.97,213.91,7.7]
[1758739916627,3.26470605,213.96,213.88,7.7]
[1758739916928,3.26470605,213.95,213.93,7.7]
[1758739917232,3.26470605,213.94,213.93,7.7]
[1758739919831,7.38,213.97,213.93,4.2046]
[1758739920036,3.2627664,213.96,213.94,7.7]
[1758739920235,3.2627664,213.95,213.94,7.7]
[1758739921035,3.36701509,214.01,213.95,4.2043]
[1758739921236,3.26240721,214.0,213.95,11.4243]
[1758739921541,3.36701509,214.01,213.95,11.4243]
[1758739921542,7.6,213.98,213.95,11.4243]
[1758739921737,3.26240721,213.97,213.95,11.4243]
[1758739921937,3.26240721,213.96,213.95,11.4243]
[1758739922638,7.6,213.98,213.95,11.4243]
[1758739922839,3.26032678,213.97,213.95,11.4243]
[1758739923030,3.36701509,214.02,213.96,11.424]
[1758739923230,3.36701509,214.02,213.96,4.204]
[1758739923231,7.6,214.0,213.96,4.204]
[1758739923437,3.26057433,213.99,213.97,7.22]
[1758739923638,7.6,214.0,213.97,7.22]
[1758739923837,3.25964358,213.99,213.97,11.4238]
[1758739924039,7.6,214.0,213.97,11.4238]
[1758739924239,3.25989274,213.99,213.97,11.4238]
[1758739924439,7.6,214.0,213.97,11.4238]
[1758739924641,3.25850638,213.99,213.97,11.4238]
[1758739924843,7.6,214.0,213.97,11.4238]
[1758739925040,3.25850638,213.99,213.97,11.4238]
[1758739925240,7.6,214.0,213.97,11.4238]
[1758739925441,3.25740671,213.99,213.97,11.4238]
[1758739925636,7.6,214.0,213.97,11.4238]
[1758739925837,3.25740671,213.99,213.97,11.4238]
[1758739926035,578.35320849,214.03,213.97,11.4238]
[1758739926242,3.25740671,214.02,213.97,11.4238]
[1758739926441,7.6,214.0,213.97,11.4238]
[1758739926642,3.25740671,213.99,213.97,11.4238]
[1758739926842,7.6,214.0,213.97,11.4238]
[1758739927039,3.25633007,213.99,213.97,11.4238]
[1758739927242,7.6,214.0,213.97,11.4238]
[1758739927442,3.25540909,213.99,213.97,11.4238]
[1758739927643,7.6,214.0,213.98,7.22]
[1758739927945,3.25540909,213.99,213.98,7.22]
[1758739928342,578.35320849,214.03,213.98,7.22]
[1758739928544,7.6,214.01,213.98,4.2036]
[1758739928745,3.25448016,214.0,213.98,11.4236]
[1758739928938,7.6,214.01,213.98,11.4236]
[1758739929140,3.25409056,214.0,213.99,7.22]
[1758739929343,128.2461934,214.03,214.0,11.4233]
[1758739929536,120.6461934,214.03,214.01,7.22]
[1758739929848,113.76,214.04,213.98,7.22]
[1758739931344,113.76,214.04,214.02,11.4228]
[1758739931945,121.36,214.04,214.02,11.4228]
[1758739932752,113.76,214.04,214.02,11.4228]
[1758739932944,7.6,214.07,214.03,4.2026]
[1758739933153,7.6,214.07,214.03,11.4226]
[1758739933647,3.36701509,214.08,214.03,11.4226]
[1758739933848,7.6,214.06,214.03,11.4226]
[1758739934739,7.6,214.06,214.04,11.4225]
[1758739935546,113.76,214.09,214.04,11.4225]
[1758739935744,3.24693131,214.08,214.05,11.4223]
[1758739936048,7.6,214.08,214.05,11.4223]
[1758739936243,113.76,214.09,214.05,11.4223]
[1758739936549,7.6,214.08,214.05,4.2023]
[1758739936748,113.76,214.09,214.05,4.2023]
[1758739937348,10.84546593,214.08,214.01,7.22]
[1758739937540,7.6,214.08,214.01,7.22]
[1758739937741,7.6,214.06,213.96,7.22]
[1758739937942,3.24809854,214.05,214.0,4.2033]
[1758739938148,7.6,214.07,214.0,4.2033]
[1758739938449,7.6,214.05,214.0,4.2033]
[1758739938649,7.6,214.07,214.0,4.2033]
[1758739938849,3.24805942,214.06,214.0,4.2033]
[1758739939048,7.6,214.04,214.0,4.2033]
[1758739939242,11.8021,214.07,214.0,4.2033]
[1758739939446,3.24805024,214.06,214.0,4.2033]
[1758739939644,3.24805024,214.05,214.0,4.2033]
[1758739939850,7.6,214.05,214.0,4.2033]
[1758739940052,7.6,214.06,214.0,4.2033]
[1758739940348,3.24817429,214.05,214.0,4.2033]
[1758739940552,2.1522039,214.03,214.0,4.2033]
[1758739941349,2.1522039,214.01,213.98,4.2037]
[1758739941547,7.6,214.0,213.98,4.2037]
[1758739944950,2.1522039,214.01,213.99,4.2034]
[1758739945355,9.9722039,214.03,214.0,11.9732]
[1758739946066,2.1522039,214.03,214.02,4.203]
[1758739948456,5.40838289,214.03,214.02,4.203]
[1758739948756,2.1522039,214.05,214.04,7.77]
[1758739949058,5.4086392,214.05,214.04,7.77]
[1758739949659,3.2564353,214.05,214.04,7.77]
[1758739949849,3.25782028,214.05,214.01,7.77]
[1758739950049,47.14,214.09,214.01,7.77]
[1758739950259,3.25851912,214.08,214.01,7.77]
[1758739950561,3.25851912,214.07,214.01,7.77]
[1758739950758,3.25851912,214.06,214.01,7.77]
[1758739951061,3.25851912,214.05,214.01,7.77]
[1758739951260,47.14,214.09,214.01,7.77]
[1758739951559,3.2613316,214.08,214.01,7.77]
[1758739951858,3.2613316,214.07,214.02,2.1522039]
[1758739952060,3.2613316,214.06,214.03,7.77]
[1758739952262,39.32,214.09,214.06,7.77]
[1758739952557,11.0818945,214.08,214.06,7.77]
[1758739952758,3.2618945,214.07,214.06,7.77]
[1758739953161,3.2618945,214.07,214.05,11.9723]
[1758739953358,3.2618945,214.06,214.05,11.9723]
[1758739953555,3.2618945,214.07,214.05,11.9723]
[1758739953956,11.0818945,214.07,214.05,11.9723]
[1758739954155,3.2618945,214.06,214.05,11.9723]
[1758739954456,3.2618945,214.06,214.01,7.77]
[1758739954656,7.82,214.05,214.01,7.77]
[1758739954860,3.2618945,214.04,214.02,4.2028]
[1758739955359,3.2618945,214.04,214.02,11.9728]
[1758739955565,3.2618945,214.04,214.03,7.77]
[1758739955759,3.2618945,214.07,214.03,7.77]
[1758739955967,7.82,214.06,214.03,7.77]
[1758739956262,3.2618945,214.05,214.03,11.9727]
[1758739957163,3.2618945,214.05,214.04,7.77]
[1758739957557,3.2618945,214.08,214.04,7.77]
[1758739957756,3.2618945,214.07,214.04,7.77]
[1758739957964,11.0818945,214.06,214.04,7.77]
[1758739958164,3.2618945,214.05,214.04,7.77]
[1758739958664,3.2618945,214.05,214.03,4.2027]
[1758739958866,3.2618945,214.05,214.03,11.9727]
[1758739959061,3.2618945,214.04,214.03,11.9727]
[1758739959364,7.82,214.06,214.03,11.9727]
[1758739959554,3.2618945,214.05,214.03,11.9727]
[1758739963166,3.2618945,214.05,214.04,7.77]
[1758739963555,3.2618945,214.06,214.04,7.77]
[1758739964568,7.82,214.04,214.03,4.2027]
[1758739964863,11.0818945,214.04,214.03,4.2027]
[1758739965372,11.0818945,214.04,214.01,11.9731]
[1758739965566,11.0818945,214.03,214.01,11.9731]
[1758739965867,3.2618945,214.02,214.01,11.9731]
[1758739966669,7.82,214.01,213.99,4.2035]
[1758739966869,3.2618945,214.0,213.99,4.2035]
[1758739967064,3.2618945,214.0,213.95,2.1522039]
[1758739967268,3.2618945,214.0,213.96,7.77]
[1758739967468,11.0818945,214.0,213.97,11.9739]
[1758739967674,3.2618945,213.99,213.98,7.77]
[1758739967970,11.0818945,214.02,213.98,7.77]
[1758739968158,3.2618945,214.01,213.99,11.9735]
[1758739968362,7.82,214.02,214.0,7.77]
[1758739968574,3.26451491,214.01,214.0,7.77]
[1758739972573,2.1522039,214.04,214.0,7.77]
[1758739972777,7.82,214.03,214.0,7.77]
[1758739972978,3.26605654,214.02,214.0,7.77]
[1758739973273,7.82,214.03,214.0,7.77]
[1758739975982,3.26630286,214.02,214.01,7.71]
[1758739978681,3.26630286,214.02,214.0,11.9133]
[1758739978879,3.26630286,214.01,214.0,11.9133]
[1758739984179,5.20529336,214.07,213.95,65.401]
[1758739984180,7.33,214.09,214.04,4.2025]
[1758739984383,7.33,214.09,214.05,7.7]
[1758739984582,5.20529336,214.1,214.05,7.7]
[1758739984888,7.33,214.09,214.05,7.7]
[1758739985383,5.20529336,214.1,214.05,7.7]
[1758739985581,7.33,214.09,214.05,7.7]
[1758739986072,5.20529336,214.1,214.05,7.7]
[1758739986476,9.40679336,214.1,214.05,7.7]
[1758739986677,7.33,214.09,214.05,7.7]
[1758739986875,2.1522039,214.09,214.05,7.7]
[1758739987080,7.33,214.08,214.05,7.7]
[1758739987479,7.33,214.08,214.02,11.903]
[1758739988382,7.33,214.08,214.03,4.2027]
[1758739988790,7.33,214.08,214.04,7.7]
[1758739989084,7.33,214.08,214.03,4.2027]
[1758739989483,7.33,214.08,214.04,7.7]
[1758739989690,7.33,214.08,214.05,7.7]
[1758739989890,7.33,214.08,214.01,7.7]
[1758739990290,7.35749726,214.09,214.06,7.7]
[1758739990291,5.20529336,214.09,214.06,7.7]
[1758739990589,12.53529336,214.1,214.06,7.7]
[1758739991292,5.20529336,214.1,214.07,7.7]
[1758739991481,5.20529336,214.1,214.06,4.2021]
[1758739991685,5.20529336,214.1,214.07,7.7]
[1758739993993,7.33,214.09,214.07,7.7]
[1758739995290,5.20529336,214.1,214.07,7.7]
[1758739996095,3.2516747,214.09,214.07,7.7]
[1758739996295,3.2516747,214.08,214.07,7.7]
[1758739997995,113.72,214.13,214.08,4.2017]
[1758739998389,113.72,214.13,214.09,7.7]
[1758739999601,121.05,214.13,214.08,4.2017]
[1758739999796,121.05,214.13,214.09,7.7]
[1758740000293,121.05,214.13,214.08,4.2017]
[1758740000894,113.72,214.13,214.09,7.7]
[1758740001094,7.33,214.12,214.06,11.9021]
[1758740001290,7.33,214.12,214.06,7.7]
[1758740001497,11.5311,214.12,214.06,7.7]
[1758740005606,4.2014,214.11,214.03,7.26]
[1758740005807,7.36,214.1,214.03,7.26]
[1758740009010,7.36,214.1,214.03,4.2026]
[1758740009215,7.36,214.1,214.04,7.26]
[1758740014914,7.36,214.1,214.0,7.26]
[1758740015317,7.36,214.07,214.0,7.26]
[1758740017218,7.36,214.07,214.02,4.2029]
[1758740017416,7.36,214.07,214.03,7.26]
[1758740017617,7.36,214.07,214.02,4.2029]
[1758740018017,7.36,214.07,214.03,7.26]
[1758740018423,7.36,214.07,214.02,4.2029]
[1758740018625,4.2017,214.09,214.03,7.26]
[1758740018823,7.36,214.08,214.03,7.26]
[1758740019019,4.2017,214.09,214.0,4.2033]
[1758740019228,7.36,214.08,214.01,7.26]
[1758740019426,7.36,214.08,214.02,7.26]
[1758740024730,7.36,214.08,214.02,11.4629]
[1758740025728,11.5614,214.11,213.99,7.26]
[1758740025921,11.5614,214.11,214.01,7.26]
[1758740026117,7.36,214.11,214.01,7.26]
[1758740026428,7.36,214.11,214.0,3.35903536]
[1758740026429,7.36,214.11,214.07,7.26]
[1758740026628,7.36,214.11,214.06,4.2021]
[1758740026823,7.36,214.11,214.07,7.26]
[1758740027020,121.08,214.13,214.07,4.2019]
[1758740027228,113.72,214.13,214.07,4.2019]
[1758740027627,121.08,214.13,214.07,11.4619]
[1758740027930,3.26935984,214.12,214.05,4.2024]
[1758740028130,3.26935984,214.11,214.06,7.26]
[1758740028329,3.26935984,214.1,214.05,4.2024]
[1758740028526,7.36,214.08,214.03,4.2027]
[1758740028835,10.62935984,214.07,214.01,7.26]
[1758740029028,3.26935984,214.06,213.98,7.26]
[1758740029232,3.26935984,214.05,213.98,7.26]
[1758740029532,3.26935984,214.04,213.98,7.26]
[1758740029726,3.26935984,214.03,213.98,7.26]
[1758740029925,7.36,214.07,213.98,7.26]
[1758740030232,7.36,214.05,214.01,4.2031]
[1758740030532,3.26939242,214.04,214.02,7.26]
[1758740030722,10.62939242,214.03,214.0,7.26]
[1758740030926,3.26939242,214.02,214.0,7.26]
[1758740031127,3.26939242,214.01,214.0,7.26]
[1758740031537,3.26939242,214.01,213.92,7.26]
[1758740031833,3.26939242,214.0,213.92,7.26]
[1758740032033,7.36,214.02,213.92,7.26]
[1758740032034,3.26939242,213.99,213.92,7.26]
[1758740032235,3.26939242,213.98,213.92,7.26]
[1758740032422,3.26939242,213.97,213.92,7.26]
[1758740032625,7.36,214.02,213.92,7.26]
[1758740032837,3.31684253,214.01,213.92,7.26]
[1758740033035,3.31684253,214.0,213.92,7.26]
[1758740033329,3.31684253,213.99,213.96,7.26]
[1758740033535,3.31684253,213.98,213.95,4.2043]
[1758740033733,7.36,214.02,213.95,11.4643]
[1758740033934,3.31603446,214.01,213.95,11.4643]
[1758740034136,7.63,213.99,213.96,7.65]
[1758740034433,3.31603446,213.98,213.96,7.65]
[1758740035731,7.63,213.99,213.96,7.65]
[1758740037327,3.3141186,213.98,213.96,7.65]
[1758740037531,3.3141186,213.97,213.96,7.65]
[1758740037833,7.63,213.99,213.96,7.65]
[1758740038035,3.3138046,213.98,213.96,7.65]
[1758740038336,7.63,214.02,213.96,7.65]
[1758740038534,3.31327479,214.01,213.96,4.2041]
[1758740038838,3.31327479,214.01,213.91,65.4139]
[1758740038839,3.31327479,214.0,213.94,7.65]
[1758740039037,7.63,214.04,213.94,7.65]
[1758740039232,3.31331765,214.03,213.94,7.65]
[1758740039434,3.31331765,214.02,213.94,7.65]
[1758740039732,3.31331765,214.01,213.94,7.65]
[1758740039933,7.63,214.04,213.94,7.65]
[1758740040133,3.31304529,214.03,214.01,7.65]
[1758740040333,3.31304529,214.02,214.01,7.65]
[1758740041233,3.31304529,214.02,213.98,11.8537]
[1758740041538,10.56304529,214.01,213.94,7.65]
[1758740041839,3.31304529,214.0,213.94,7.65]
[1758740042043,3.31304529,213.99,213.93,113.66]
[1758740042243,7.25,214.01,213.94,7.65]
[1758740042546,3.31247361,214.0,213.94,7.65]
[1758740042735,3.31247361,213.99,213.94,7.65]
[1758740042936,3.35903536,214.03,213.96,4.204]
[1758740043138,7.25,213.98,213.96,4.204]
[1758740043342,3.31181454,213.97,213.94,7.65]
[1758740043543,7.25,213.97,213.94,7.65]
[1758740043740,7.25,213.97,213.95,4.2044]
[1758740043943,7.25,214.02,213.95,11.8544]
[1758740044141,3.31253438,214.01,213.95,11.8544]
[1758740044340,7.25,213.99,213.95,11.8544]
[1758740044545,3.31253438,213.98,213.95,11.8544]
[1758740044745,7.25,213.99,213.95,11.8544]
[1758740045046,3.31230099,213.98,213.95,11.8544]
[1758740045245,3.31230099,213.97,213.95,11.8544]
[1758740047050,3.31230099,213.97,213.95,7.65]
[1758740048449,10.56230099,213.97,213.93,11.8548]
[1758740048750,3.31227173,213.96,213.94,7.65]
[1758740049047,7.25,213.97,213.94,7.65]
[1758740049843,3.31241536,213.96,213.94,7.65]
[1758740050045,7.25,213.97,213.94,7.65]
[1758740050245,3.31254481,213.96,213.94,7.65]
[1758740050445,7.25,213.97,213.94,7.65]
[1758740050645,3.31214622,213.96,213.94,7.65]
[1758740050849,7.25,213.97,213.94,7.65]
[1758740051050,3.31214622,213.96,213.95,7.65]
[1758740051250,7.25,214.01,213.95,7.65]
[1758740051440,7.25,213.99,213.95,7.65]
[1758740051643,3.31175238,213.98,213.95,7.65]
[1758740051843,3.31175238,213.97,213.95,7.65]
[1758740052040,7.25,213.99,213.95,7.65]
[1758740052246,3.31175238,213.98,213.95,7.65]
[1758740052440,3.31175238,213.97,213.95,7.65]
[1758740052650,7.25,213.99,213.95,7.65]
[1758740052847,3.31136427,213.98,213.95,7.65]
[1758740053148,7.25,213.99,213.96,7.65]
[1758740053341,3.31155465,213.98,213.91,73.0636]
[1758740053544,7.25,214.02,213.92,7.65]
[1758740053746,3.31143326,214.01,213.92,7.65]
[1758740053944,3.31143326,214.0,213.92,7.65]
[1758740054145,3.31143326,213.99,213.92,7.65]
[1758740054345,3.31143326,213.98,213.97,7.65]
[1758740057254,3.31143326,213.98,213.96,11.854]
[1758740057454,7.25,214.02,213.96,11.854]
[1758740057752,3.31207488,214.01,213.96,11.854]
[1758740058055,7.25,213.99,213.96,11.854]
[1758740058355,3.31207488,213.98,213.96,11.854]
[1758740058656,7.25,214.01,213.94,4.2045]
[1758740058857,7.25,213.99,213.94,4.2045]
[1758740059154,7.25,213.97,213.94,4.2045]
[1758740059352,10.55787002,213.96,213.93,7.65]
[1758740059548,7.25,213.96,213.93,7.65]
[1758740060054,3.30794079,213.95,213.93,7.65]
[1758740060254,7.25,213.96,213.94,7.65]
[1758740060454,3.35903536,214.0,213.94,7.65]
[1758740060654,2.15316106,213.98,213.94,7.65]
[1758740060957,10.55761966,213.97,213.94,7.65]
[1758740061149,3.30761966,213.96,213.94,7.65]
[1758740061350,2.15316106,213.98,213.94,7.65]
[1758740061551,10.55725248,213.97,213.94,7.65]
[1758740061856,3.30725248,213.96,213.94,7.65]
[1758740064257,7.94,213.97,213.94,7.65]
[1758740064457,3.30625152,213.96,213.94,7.65]
[1758740064755,7.94,213.97,213.94,7.65]
[1758740064956,3.30599707,213.96,213.94,7.65]
[1758740065158,7.94,213.97,213.94,7.65]
[1758740065351,3.30615266,213.96,213.94,7.65]
[1758740065655,7.94,213.97,213.94,7.65]
[1758740065855,3.30615266,213.96,213.94,7.65]
[1758740066056,7.94,213.97,213.94,7.65]
[1758740066356,3.30600716,213.96,213.94,7.65]
[1758740066556,7.94,213.97,213.94,7.65]
[1758740066756,3.30606549,213.96,213.94,7.65]
[1758740066956,7.94,213.97,213.94,7.65]
[1758740067159,3.30606549,213.96,213.94,7.65]
[1758740067356,7.94,213.97,213.94,7.65]
[1758740067557,3.30617845,213.96,213.94,7.65]
[1758740067762,7.94,213.97,213.94,7.65]
[1758740068057,3.30617845,213.96,213.94,7.65]
[1758740068258,2.15316106,213.98,213.94,4.2045]
[1758740068456,3.30645134,213.97,213.92,7.49]
[1758740068758,2.15316106,214.01,213.92,7.49]
[1758740068958,3.30671833,214.0,213.92,2.15316106]
[1758740069161,3.30671833,213.99,213.93,7.49]
[1758740069360,2.15316106,214.01,213.93,7.49]
[1758740069562,3.30712846,214.0,213.96,4.2041]
[1758740069761,3.30712846,213.99,213.97,7.49]
[1758740069962,3.30712846,213.98,213.97,7.49]
[1758740071163,11.24712846,213.98,213.95,7.49]
[1758740071360,3.30712846,213.97,213.95,7.49]
[1758740073563,11.24712846,213.97,213.95,7.49]
[1758740073861,3.30712846,213.96,213.95,7.49]
[1758740074864,3.30712846,213.98,213.94,4.2045]
[1758740075063,3.30712846,213.97,213.95,7.49]
[1758740075260,3.30712846,213.96,213.95,7.49]
[1758740075458,3.30712846,213.98,213.95,7.49]
[1758740075659,3.30712846,213.97,213.95,7.49]
[1758740075857,3.30712846,213.96,213.95,7.49]
[1758740076070,3.30712846,213.98,213.95,7.49]
[1758740076261,3.30712846,213.97,213.94,4.2045]
[1758740076460,3.30712846,213.96,213.95,7.49]
[1758740083073,11.24712846,213.96,213.9,7.49]
[1758740083268,3.30712846,213.95,213.89,7.49]
[1758740083467,11.24712846,213.94,213.9,7.49]
[1758740083667,3.30712846,213.93,213.89,7.49]